fUSD/lending_fUSD_20240126
["ID","MTS","AMOUNT","RATE_DAILY","PERIOD"]
[312797473,1706254238238,-1013.26547405,0.00022998,2]
[312797474,1706254238247,-265.94675848,0.00022998,2]
[312797475,1706254238281,-311.21120683,0.00022998,2]
[312797476,1706254238294,-559.06512075,0.00022998,2]
[312797477,1706254238303,-702.12614224,0.00022998,2]
[312797479,1706254238312,-924.08096942,0.00022998,2]
[312797482,1706254238332,-130.33406616,0.00022998,2]
[312797484,1706254238341,-249.34126284,0.00022998,2]
[312797486,1706254238350,-1647.27407841,0.00022998,2]
[312797488,1706254238359,-659.37080422,0.00022998,2]
[312797490,1706254238368,-155.0,0.00022998,2]
[312797492,1706254238378,-941.41772909,0.00022998,2]
[312797494,1706254238387,-156.57831806,0.00022998,2]
[312797496,1706254238396,-392.21571326,0.00022998,2]
[312797498,1706254238405,-1259.38403935,0.00022999,2]
[312797500,1706254238414,-1688.56177792,0.00022999,2]
[312797502,1706254238423,-824.69868954,0.00022999,2]
[312797504,1706254238432,-364.6890552,0.00023,2]
[312797506,1706254238443,-868.71140911,0.00023,2]
[312797508,1706254238455,-19210.58780437,0.00023,2]
[312797511,1706254238474,-59564.9948406,0.00023,2]
[312797513,1706254238485,-679.21665167,0.00023,2]
[312797515,1706254238497,-347.34798172,0.00023,2]
[312797590,1706254240503,-259788.55859357,0.00023,2]
[312797591,1706254240513,-95816.4750155,0.00023,2]
[312797592,1706254240559,-173148.47481318,0.00023,2]
[312797593,1706254241295,-948.83827011,0.00023,2]
[312797594,1706254241307,-1196.35888034,0.00023,2]
[312797644,1706254243201,-196.91009225,0.00022999,2]
[312797645,1706254243211,-183.08991745,0.00023,2]
[312797647,1706254246023,-10256.93218859,0.00023,2]
[312797648,1706254246081,-1829.64137571,0.00023,2]
[312797650,1706254248477,-1701.3480908,0.00023,2]
[312797651,1706254248488,-49064.74957899,0.00023,2]
[312797652,1706254266021,1282.63680754,0.0002156,5]
[312797653,1706254444353,208.0,0.00020436,2]
[312797654,1706254600444,197.0,0.00019919,2]
[312797655,1706254713925,208.0,0.00020436,2]
[312797656,1706255033848,204.77,0.00019818,2]
[312797658,1706255384876,-526.01403717,0.00021637,2]
[312797659,1706255384898,-362.29642557,0.00021638,2]
[312797660,1706255384920,-295.95881085,0.00021639,2]
[312797661,1706255384942,-411.29,0.0002164,2]
[312797662,1706255384963,-2000.0,0.00021656,2]
[312797663,1706255384986,-281.84911797,0.00021669,2]
[312797689,1706255438124,-150.0,0.00021677,2]
[312797690,1706255438135,-200.0,0.00021678,2]
[312797691,1706255438146,-288.24848553,0.00021678,2]
[312797692,1706255438161,-327.90158654,0.00021678,2]
[312797693,1706255438174,-6255.2304,0.00021678,2]
[312797694,1706255438275,-1085.41820824,0.00021678,2]
[312797695,1706255438454,-772.60300918,0.00021678,2]
[312797696,1706255438479,-2891.17880614,0.00021678,2]
[312797697,1706255438492,-1857.66139216,0.00021678,2]
[312797698,1706255438510,-8197.33811221,0.00021678,2]
[312797700,1706255438522,-1410.54,0.00021709,2]
[312797702,1706255438532,-623.71,0.00021711,2]
[312797704,1706255438542,-3758.14694374,0.00021762,2]
[312797706,1706255438551,-168.66,0.00021888,2]
[312797708,1706255438561,-376.29,0.00021888,2]
[312797710,1706255438571,-250.0,0.00021918,2]
[312797713,1706255438580,-150.99,0.00021918,2]
[312797715,1706255438590,-250.0,0.00022,2]
[312797717,1706255438599,-204.77,0.00022082,2]
[312797719,1706255438608,-250.0,0.00022274,2]
[312797721,1706255438618,-360.59682706,0.00022548,3]
[312797723,1706255438627,-465.24189115,0.00022548,2]
[312797725,1706255438636,-812.7754651,0.00022697,2]
[312797727,1706255438646,-301.71999025,0.00022795,2]
[312797729,1706255438655,-320.63939579,0.00022796,2]
[312797731,1706255438665,-482.02826836,0.00022796,2]
[312797733,1706255438674,-360.89732109,0.00022796,2]
[312797735,1706255438684,-16788.70868342,0.00022797,2]
[312797737,1706255438695,-783.45476951,0.00022797,2]
[312797739,1706255438707,-8016.07738084,0.00022797,2]
[312797742,1706255438718,-793.18800703,0.00022797,2]
[312797744,1706255438733,-392.92178369,0.00022797,2]
[312797746,1706255438745,-51514.55447551,0.00022797,2]
[312797749,1706255438754,-800.0,0.00022815,2]
[312797750,1706255438766,-200.0,0.00022816,2]
[312797753,1706255438776,-800.0,0.00022816,2]
[312797755,1706255438786,-226.99166495,0.00022871,2]
[312797757,1706255438795,-226.99166495,0.00022881,2]
[312797759,1706255438805,-226.99166495,0.0002289,2]
[312797761,1706255438815,-95933.44161977,0.00022897,2]
[312797763,1706255438829,-391.3311,0.00022898,2]
[312797765,1706255438839,-341.6147,0.00022898,2]
[312797767,1706255438849,-26273.6471,0.00022898,2]
[312797769,1706255438860,-226.99166495,0.000229,2]
[312797771,1706255438870,-151.49536586,0.000229,2]
[312797773,1706255438881,-5262.29066759,0.000229,2]
[312797775,1706255438892,-357.62918796,0.000229,2]
[312797777,1706255438904,-292.130337,0.000229,2]
[312797779,1706255438916,-1579.63469746,0.000229,2]
[312797781,1706255438928,-181.71064084,0.0002299,2]
[312797783,1706255438939,-75798.0276001,0.00022996,2]
[312797785,1706255438950,-232.94118767,0.00022997,2]
[312797787,1706255438961,-333.27834163,0.00022998,2]
[312797789,1706255438973,-471.32400001,0.00022998,2]
[312797790,1706255438985,-155.86402743,0.00022998,2]
[312797792,1706255438995,-1610.37447621,0.00022998,2]
[312797794,1706255439005,-178.94185082,0.00022998,2]
[312797796,1706255439018,-630.6668591,0.00022998,2]
[312797798,1706255439028,-161.92870866,0.00022998,2]
[312797800,1706255439038,-6003.81762164,0.00022998,2]
[312797802,1706255439048,-318.24086074,0.00022998,2]
[312797804,1706255439057,-155.44390996,0.00022998,2]
[312797805,1706255439067,-2152.94004867,0.00022998,2]
[312797807,1706255439078,-156.43646517,0.00022998,2]
[312797809,1706255439088,-223.16656548,0.00022998,2]
[312797811,1706255439098,-196.37388181,0.00022998,2]
[312797813,1706255439108,-5794.63731753,0.00022998,2]
[312797815,1706255439117,-415.3614252,0.00022998,2]
[312797817,1706255439127,-156.19638015,0.00022998,2]
[312797819,1706255439137,-202.94837059,0.00022998,2]
[312797821,1706255439147,-155.45037873,0.00022998,2]
[312797823,1706255439161,-277.17272826,0.00022998,2]
[312797825,1706255439171,-156.37062616,0.00022998,2]
[312797827,1706255439181,-155.97374412,0.00022998,2]
[312797829,1706255439191,-155.62301832,0.00022998,2]
[312797831,1706255439201,-457.24708661,0.00022998,2]
[312797833,1706255439209,-190.54461324,0.00022998,2]
[312797835,1706255439220,-156.2918762,0.00022998,2]
[312797837,1706255439230,-22608.48757816,0.00022998,2]
[312797839,1706255439240,-236.90039395,0.00022998,2]
[312797841,1706255439252,-607.58187312,0.00022998,2]
[312797843,1706255439261,-156.78738203,0.00022998,2]
[312797845,1706255439279,-1056.86295192,0.00022998,2]
[312797847,1706255439289,-387.1184404,0.00022998,2]
[312797849,1706255439298,-158.32950144,0.00022998,2]
[312797851,1706255439309,-364.09538564,0.00022998,2]
[312797853,1706255439317,-245.99676625,0.00022998,2]
[312797855,1706255439327,-156.62849969,0.00022998,2]
[312797857,1706255439337,-200.4169865,0.00022998,2]
[312797859,1706255439346,-652.57373136,0.00022998,2]
[312797861,1706255439355,-228.53435548,0.00022998,2]
[312797863,1706255439364,-10313.72732111,0.00022998,2]
[312797865,1706255439374,-246.99950823,0.00022998,2]
[312797867,1706255439383,-220.43024859,0.00022998,2]
[312797869,1706255439393,-268.6802087,0.00022998,2]
[312797871,1706255439402,-169.28298534,0.00022999,2]
[312797873,1706255439411,-2008.5458405,0.00022999,2]
[312797875,1706255439420,-150.72940828,0.00022999,2]
[312797877,1706255439429,-618.52401716,0.00022999,2]
[312797879,1706255439439,-3353120.25881865,0.00023,2]
[312798024,1706255441578,-349.27522004,0.00023,2]
[312798025,1706255441590,-738.70204546,0.00023,2]
[312798026,1706255441687,-271.33310921,0.00023,2]
[312798041,1706255443382,-1149.30112856,0.00023,2]
[312798042,1706255443458,-102358.18845008,0.00023,2]
[312798043,1706255443472,-1738.0000003,0.00023,2]
[312798045,1706255446376,-5217.12,0.00023,2]
[312798046,1706255446392,-1102.50000001,0.00023,2]
[312798047,1706255446491,-558.26461644,0.00023,2]
[312798048,1706255446607,-377.34566948,0.00023,2]
[312798049,1706255495040,1099.55565881,0.00021669,2]
[312798050,1706255511263,736.51866558,0.00021,2]
[312798051,1706255586506,201.92,0.00019973,2]
[312798054,1706255955951,6713.8,0.00021654,2]
[312798055,1706255988541,187.15,0.00021671,2]
[312798056,1706255995794,384.9160274,0.00021675,2]
[312798057,1706255999092,245.32253278,0.00021675,2]
[312798058,1706256037976,191.82,0.00019773,2]
[312798059,1706256048909,270.53151367,0.00021675,2]
[312798060,1706256109909,250.0,0.00021664,2]
[312798061,1706256110269,1438.65,0.00021664,2]
[312798062,1706256223323,2420.63923727,0.00020704,7]
[312798063,1706256231181,2705.0,0.0002166,2]
[312798064,1706256242767,855.6615917,0.00021675,2]
[312798065,1706256362213,1852.42,0.00021653,2]
[312798066,1706256370346,-200.0,0.00021677,2]
[312798067,1706256370368,-150.0,0.00021678,2]
[312798068,1706256370390,-150.0,0.00021679,2]
[312798069,1706256371531,423.24,0.00021653,2]
[312798070,1706256374031,-488.29,0.00021679,2]
[312798071,1706256399578,-352.38,0.00021683,2]
[312798072,1706256405833,-498.97,0.00021691,2]
[312798073,1706256405854,-1.03,0.00021695,2]
[312798074,1706256440906,-198.97,0.00021695,2]
[312798075,1706256465838,-300.0,0.0002171,2]
[312798076,1706256469631,204.03,0.00019848,2]
[312798077,1706256483463,-400.0,0.0002171,2]
[312798078,1706256527073,-700.0,0.0002171,2]
[312798079,1706256560770,1198.87,0.0002161,2]
[312798080,1706256603882,1228.53056958,0.00020608,2]
[312798081,1706256618097,176.19,0.00021612,2]
[312798087,1706256632341,-346.31,0.0002171,2]
[312798088,1706256632350,-150.0,0.00021714,2]
[312798089,1706256632361,-6.57675972,0.00021715,2]
[312798090,1706256632374,-546.06149217,0.00021715,2]
[312798091,1706256632386,-431.18512968,0.00021715,2]
[312798092,1706256632397,-5284.59673525,0.00021715,2]
[312798093,1706256632410,-270.98804803,0.00021715,2]
[312798094,1706256632455,-299.99,0.00021715,2]
[312798095,1706256632467,-832.48880502,0.00021715,2]
[312798096,1706256632512,-1126.09699632,0.00021715,2]
[312798097,1706256632524,-341.78195328,0.00021715,2]
[312798098,1706256632569,-879.76098058,0.00021715,2]
[312798099,1706256632580,-559.71247832,0.00021715,2]
[312798100,1706256632591,-32491.6415429,0.00021715,2]
[312798101,1706256632601,-23880.0,0.00021716,2]
[312798102,1706256632610,-187.15,0.00021735,2]
[312798103,1706256632619,-600.82,0.00021754,2]
[312798104,1706256632629,-366.24967585,0.00021794,2]
[312798105,1706256632638,-244.5905475,0.00021794,2]
[312798106,1706256632647,-274.04962042,0.00021794,2]
[312798107,1706256632656,-306.97180835,0.00021795,2]
[312798108,1706256632665,-1272.44,0.00021805,2]
[312798109,1706256632674,-171.73,0.00021841,2]
[312798111,1706256632683,-552.79,0.00021892,2]
[312798113,1706256632692,-483.18,0.00021918,2]
[312798114,1706256632701,-250.0,0.00021918,2]
[312798115,1706256632712,-2784.9835523,0.00022,2]
[312798116,1706256632723,-3190.67771766,0.00022079,2]
[312798117,1706256632732,-204.03,0.00022112,2]
[312798118,1706256632742,-171.73,0.00022125,2]
[312798119,1706256632753,-1253.0,0.00022317,2]
[312798120,1706256632762,-171.73,0.0002241,2]
[312798121,1706256632771,-328.99855654,0.000225,3]
[312798122,1706256632781,-545.91249959,0.000225,2]
[312798123,1706256632789,-150.0,0.00022607,2]
[312798124,1706256632798,-171.73,0.00022694,2]
[312798125,1706256632807,-286.58798442,0.00022769,2]
[312798126,1706256632816,-1746.31,0.00022795,2]
[312798127,1706256632825,-299.5784,0.00022797,2]
[312798128,1706256632834,-377.8329,0.000228,2]
[312798129,1706256632842,-500.0,0.00022815,2]
[312798130,1706256632851,-200.0,0.00022815,2]
[312798131,1706256632860,-500.0,0.00022815,2]
[312798132,1706256632869,-200.0,0.00022815,2]
[312798133,1706256632878,-500.0,0.00022815,2]
[312798134,1706256632887,-200.0,0.00022816,2]
[312798135,1706256632896,-500.0,0.00022816,2]
[312798136,1706256632905,-500.0,0.00022816,2]
[312798137,1706256632914,-200.0,0.00022816,2]
[312798138,1706256632923,-500.0,0.00022816,2]
[312798139,1706256632932,-500.0,0.00022816,2]
[312798140,1706256632940,-500.0,0.00022816,2]
[312798141,1706256632949,-500.0,0.00022816,2]
[312798142,1706256632958,-500.0,0.00022816,2]
[312798143,1706256632966,-200.0,0.00022816,2]
[312798144,1706256632975,-200.0,0.00022816,2]
[312798145,1706256632984,-200.0,0.00022816,2]
[312798146,1706256632993,-200.0,0.00022816,2]
[312798147,1706256633002,-1140.78473215,0.00022897,2]
[312798148,1706256633011,-13223.12571373,0.000229,2]
[312798149,1706256637870,393.58290392,0.0002,2]
[312798152,1706256638314,-40975.06178627,0.000229,2]
[312798153,1706256638324,-59599.3537,0.000229,2]
[312798154,1706256638333,-151.51119841,0.000229,2]
[312798155,1706256638342,-910.18817912,0.000229,2]
[312798156,1706256638352,-5110.04105788,0.000229,2]
[312798157,1706256638361,-171.73,0.00022979,2]
[312798158,1706256638371,-171468.81678408,0.00022987,2]
[312798159,1706256638381,-3609.546437,0.00022997,2]
[312798160,1706256638390,-2648.32495509,0.00022997,2]
[312798161,1706256638400,-1052.9466411,0.00022997,2]
[312798162,1706256638413,-479.83212837,0.00022997,2]
[312798163,1706256638423,-294.52952463,0.00022997,2]
[312798164,1706256638432,-320.93418675,0.00022997,2]
[312798165,1706256638442,-1387.96118204,0.00022997,2]
[312798166,1706256638452,-156.11859892,0.00022997,2]
[312798167,1706256638462,-261.21593204,0.00022997,2]
[312798168,1706256638472,-3600.43246578,0.00022997,2]
[312798169,1706256638482,-155.55978257,0.00022998,2]
[312798170,1706256638491,-242.06792932,0.00022998,2]
[312798171,1706256638501,-767.58742384,0.00022998,2]
[312798172,1706256638511,-155.0,0.00022999,2]
[312798173,1706256638521,-155.97046064,0.00022999,2]
[312798174,1706256638532,-418.22582824,0.00022999,2]
[312798175,1706256638552,-221.15744731,0.00022999,2]
[312798176,1706256638566,-421.11065095,0.00022999,2]
[312798177,1706256638576,-722.13647252,0.00022999,2]
[312798178,1706256638585,-499125.78393164,0.00023,2]
[312798179,1706256638595,-106645.76267334,0.00023,2]
[312798180,1706256638606,-1043.21340546,0.00023,2]
[312798181,1706256638615,-2450848.13805534,0.00023,2]
[312798182,1706256638651,-22592.06747877,0.00023,2]
[312798183,1706256638662,-60579.95133257,0.00023,2]
[312798184,1706256638678,-2461.16702176,0.00023,2]
[312798185,1706256638689,-6237.00356573,0.00023,2]
[312798186,1706256638701,-898.9078218,0.00023,2]
[312798187,1706256638714,-3727.40956189,0.00023,2]
[312798188,1706256638726,-457.39325008,0.00023,2]
[312798189,1706256638738,-43300.60778546,0.00023,2]
[312798190,1706256638774,-731.0,0.00023,2]
[312798191,1706256638787,-646.29417277,0.00023,2]
[312798201,1706256641474,-92438.89384571,0.00023,2]
[312798202,1706256641688,-1878.69097637,0.00023,2]
[312798203,1706256641700,-737.69105346,0.00023,2]
[312798204,1706256641712,-3397.75525192,0.00023,2]
[312798205,1706256641732,-258440.15057292,0.00023,2]
[312798206,1706256641744,-1550.85846974,0.00023,2]
[312798207,1706256641756,-1572.90815554,0.00023,2]
[312798208,1706256641776,-419.29496176,0.00023,2]
[312798209,1706256641818,-181.65656762,0.00023,2]
[312798213,1706256642992,181.5933321,0.00021616,2]
[312798223,1706256644060,200.0,0.000228,8]
[312798224,1706256646157,500.0,0.000229,8]
[312798225,1706256646413,-258.24345965,0.00023,2]
[312798226,1706256648268,800.0,0.000259,9]
[312798227,1706256695916,1228.53056958,0.00020698,2]
[312798228,1706256712688,200.0,0.000228,8]
[312798229,1706256714804,500.0,0.000229,8]
[312798230,1706256715890,442.86269943,0.00020696,2]
[312798231,1706256746181,3684.53,0.00021655,2]
[312798232,1706256749604,5842.06,0.00021655,2]
[312798233,1706256784223,556.81,0.00021655,2]
[312798234,1706256805194,2000.0,0.00021662,2]
[312798235,1706256818027,500.0,0.00021662,2]
[312798236,1706256828508,362.69,0.00021643,2]
[312798237,1706256852087,966.82,0.00021636,2]
[312798238,1706256873305,183.22,0.00021636,2]
[312798239,1706256886720,519.34,0.00021636,2]
[312798240,1706256888021,182.72,0.00021644,2]
[312798241,1706256891817,23900.0,0.00021619,2]
[312798242,1706256903755,217.69,0.00019674,2]
[312798243,1706256929210,150.0,0.00021577,2]
[312798244,1706256933548,159.77,0.00021577,2]
[312798245,1706256963102,14476.99,0.00021577,2]
[312798246,1706256996449,1532.86,0.00021577,2]
[312798247,1706257002956,200.0,0.0002156,2]
[312798248,1706257020778,750.0,0.0002156,2]
[312798249,1706257022208,262.54,0.0002156,2]
[312798250,1706257097661,1412.21,0.00021558,2]
[312798251,1706257098297,200.0,0.00021558,2]
[312798252,1706257108983,250.0,0.00021577,2]
[312798253,1706257122201,591.53,0.00021566,2]
[312798254,1706257122366,1428.76,0.00021566,2]
[312798255,1706257163133,235.23197593,0.00021566,2]
[312798256,1706257166376,3191.74123019,0.00020953,2]
[312798257,1706257167403,731.43450475,0.00021,2]
[312798258,1706257170958,11401.54783867,0.00019644,5]
[312798259,1706257183115,155.56300925,0.00021566,2]
[312798260,1706257196179,364.0,0.00021,120]
[312798261,1706257200798,2208.55,0.00021469,2]
[312798262,1706257206944,303.28,0.0002147,2]
[312798263,1706257211868,302.72900605,0.00021675,2]
[312798264,1706257264511,252.07576359,0.0001933,2]
[312798265,1706257267128,235.14103505,0.00021675,2]
[312798266,1706257290547,900.74,0.00021493,2]
[312798267,1706257307518,182.72,0.00021644,2]
[312798268,1706257311368,16671.72450253,0.00021675,2]
[312798269,1706257335225,4353.02,0.00021488,2]
[312798270,1706257351757,224.3,0.00019598,2]
[312798271,1706257378538,584.52,0.00021501,2]
[312798272,1706257416212,1047.78,0.00021501,2]
[312798273,1706257428292,468.79410478,0.00016126,2]
[312798274,1706257432514,561.51478483,0.0001933,2]
[312798275,1706257432836,226.73045918,0.00021501,2]
[312798276,1706257437504,217.39142908,0.00021286,2]
[312798277,1706257442864,161.91946576,0.00019547,2]
[312798278,1706257454516,204.14442685,0.0001933,2]
[312798279,1706257457325,599.73189868,0.00021,2]
[312798280,1706257459959,1277.38,0.00021503,2]
[312798281,1706257462835,161.91946576,0.00019547,2]
[312798282,1706257478838,161.91946576,0.00019547,2]
[312798283,1706257498848,161.91946576,0.00019547,2]
[312798284,1706257518845,263.83792298,0.00019547,2]
[312798285,1706257530048,410.92,0.00021621,2]
[312798286,1706257571801,-1702.24534916,0.00021676,2]
[312798287,1706257571825,-150.0,0.0002172,2]
[312798288,1706257571849,-304.73710127,0.0002172,2]
[312798289,1706257572061,-13399.31,0.00021721,2]
[312798290,1706257572091,-161.48,0.00021734,2]
[312798291,1706257572115,-181.59333196,0.00021819,2]
[312798292,1706257572137,-219.09279346,0.00021826,2]
[312798293,1706257572162,-191.15890141,0.00021826,2]
[312798294,1706257572186,-257.0325133,0.00021826,2]
[312798295,1706257572208,-2524.82707088,0.00021826,2]
[312798296,1706257572230,-177.88514416,0.00021826,2]
[312798297,1706257572253,-155.27228325,0.00021826,2]
[312798298,1706257572276,-4492.19656681,0.00021826,2]
[312798299,1706257572298,-1046.30174013,0.00021826,2]
[312798300,1706257572321,-279.66758209,0.00021826,2]
[312798301,1706257572343,-339.31419882,0.00021826,2]
[312798302,1706257572365,-874.20021104,0.00021826,2]
[312798303,1706257572388,-2146.10378163,0.00021826,2]
[312798304,1706257572411,-2180.72664687,0.00021827,2]
[312798305,1706257572435,-161.48,0.0002186,2]
[312798306,1706257572460,-224.3,0.00021862,2]
[312798307,1706257572483,-181.59333196,0.00021886,2]
[312798308,1706257572505,-486.95,0.00021918,2]
[312798309,1706257572528,-250.0,0.00021918,2]
[312798310,1706257572554,-181.59333196,0.00021954,2]
[312798311,1706257572578,-161.48,0.00021986,2]
[312798312,1706257572601,-2784.9835523,0.00022,2]
[312798313,1706257572625,-181.59333196,0.00022021,2]
[312798314,1706257572647,-421.55182135,0.00022078,2]
[312798315,1706257572671,-181.59333196,0.00022089,2]
[312798316,1706257572695,-161.48,0.00022112,2]
[312798317,1706257572718,-181.59333196,0.00022157,2]
[312798318,1706257572742,-181.59333196,0.00022224,2]
[312798319,1706257572766,-161.48,0.00022237,2]
[312798320,1706257572791,-181.59333196,0.00022292,2]
[312798321,1706257572815,-181.59333196,0.00022359,2]
[312798322,1706257572839,-161.48,0.00022363,2]
[312798323,1706257572866,-181.59333196,0.00022427,2]
[312798324,1706257572890,-161.48,0.00022489,2]
[312798325,1706257572913,-181.59333196,0.00022495,2]
[312798326,1706257572939,-181.59333196,0.00022562,2]
[312798327,1706257572966,-1047.78,0.00022576,2]
[312798328,1706257572989,-434.83183546,0.00022576,3]
[312798329,1706257573012,-161.48,0.00022615,2]
[312798330,1706257573040,-181.59333196,0.0002263,2]
[312798331,1706257573063,-181.59333196,0.00022697,2]
[312798332,1706257573086,-362.69,0.00022725,2]
[312798333,1706257573109,-161.48,0.00022741,2]
[312798334,1706257573132,-34897.64215266,0.0002275,2]
[312798335,1706257573155,-181.59333196,0.00022765,2]
[312798336,1706257573177,-500.0,0.00022815,2]
[312798337,1706257573198,-200.0,0.00022815,2]
[312798338,1706257573220,-500.0,0.00022815,2]
[312798339,1706257573242,-500.0,0.00022816,2]
[312798340,1706257573263,-200.0,0.00022816,2]
[312798341,1706257573285,-500.0,0.00022816,2]
[312798342,1706257573306,-500.0,0.00022816,2]
[312798343,1706257573329,-500.0,0.00022816,2]
[312798344,1706257573351,-500.0,0.00022816,2]
[312798345,1706257573373,-500.0,0.00022816,2]
[312798346,1706257573395,-200.0,0.00022816,2]
[312798347,1706257573417,-800.0,0.00022816,2]
[312798348,1706257573439,-200.0,0.00022816,2]
[312798349,1706257573461,-200.0,0.00022816,2]
[312798350,1706257573484,-181.59333196,0.00022832,2]
[312798351,1706257573508,-161.48,0.00022867,2]
[312798352,1706257573531,-11365.6669,0.00022899,2]
[312798353,1706257573553,-1232.3636,0.00022899,2]
[312798354,1706257573577,-181.59333196,0.000229,2]
[312798355,1706257573600,-11268.6387289,0.000229,2]
[312798356,1706257573623,-998.18664064,0.000229,2]
[312798357,1706257573646,-151.52644429,0.00022904,2]
[312798358,1706257573668,-215.63475234,0.00022975,2]
[312798359,1706257573690,-1000.0,0.00022998,2]
[312798360,1706257573712,-603.35,0.00022998,2]
[312798361,1706257573745,-354.87715265,0.00022998,2]
[312798362,1706257573769,-524.31366153,0.00022998,2]
[312798363,1706257573792,-849.7190247,0.00022998,2]
[312798364,1706257573816,-164.96152334,0.00022998,2]
[312798365,1706257573839,-7309.6867305,0.00022999,2]
[312798366,1706257573862,-734.49727037,0.00022999,2]
[312798367,1706257573884,-1709.8939157,0.00022999,2]
[312798368,1706257573907,-1087.7900983,0.00023,3]
[312798369,1706257573932,-378576.20566737,0.00023,2]
[312798409,1706257623504,400.0,0.000239,8]
[312798410,1706257653719,208.0,0.00021672,2]
[312798416,1706257831556,-311.32,0.00022301,2]
[312798417,1706257831566,-43.16328882,0.00022899,2]
[312798418,1706257831578,-2930.32001118,0.00022899,2]
[312798419,1706257831587,-214.68879715,0.00022899,2]
[312798420,1706257831597,-297.3731,0.000229,2]
[312798421,1706257831607,-2016.20080627,0.00022999,2]
[312798422,1706257831616,-150.0,0.00022999,2]
[312798423,1706257831625,-550.1648252,0.00023,3]
[312798424,1706257831634,-420.10418561,0.00023,3]
[312798425,1706257831644,-181818.5417247,0.00023,2]
[312798426,1706257831659,-3798.406,0.00023,2]
[312798427,1706257831674,-1916.98708128,0.00023,2]
[312798428,1706257831779,-1020.88331608,0.00023,2]
[312798435,1706257837819,-8686.15826363,0.00023,2]
[312798471,1706257840791,-2308.76427884,0.00023,2]
[312798472,1706257840803,-1000.0,0.00023,2]
[312798487,1706257846241,-693.06624197,0.00022999,2]
[312798488,1706257846252,-4106.82990421,0.00023,2]
[312798489,1706257846261,-303.22665387,0.00023,2]
[312798490,1706257846349,-932.14062538,0.00023,2]
[312798491,1706257847049,-11479.63685952,0.00023,2]
[312798492,1706257863784,208.0,0.00021672,2]
[312798493,1706258351612,314.02,0.0002037,2]
[312798494,1706258478538,150.82406594,0.00021634,2]
[312798495,1706258716676,10382.49,0.0002161,2]
[312798496,1706258732548,532.38,0.00021636,2]
[312798497,1706258769326,21627.17,0.00021594,2]
[312798498,1706258775220,1050.0,0.00021633,2]
[312798499,1706258815230,200.0,0.00021597,2]
[312798500,1706258834144,400.0,0.000259,9]
[312798501,1706258854347,182.33,0.00021634,2]
[312798502,1706258888403,278.62,0.00021635,2]
[312798504,1706258904252,1505.7,0.00021622,2]
[312798505,1706258952482,298.31,0.00019741,2]
[312798506,1706258984592,182.72,0.00021667,2]
[312798514,1706259031790,-1072.40376802,0.00021808,2]
[312798515,1706259031800,-551.54271996,0.00021809,2]
[312798524,1706259038027,-803.36,0.00021809,2]
[312798528,1706259040308,-444.94546264,0.00021809,2]
[312798529,1706259041077,-663.93,0.00021809,2]
[312798530,1706259041090,-545.98923373,0.00021809,2]
[312798531,1706259041100,-212.08154204,0.00021817,2]
[312798532,1706259041109,-536.31,0.00021917,2]
[312798533,1706259041118,-238.14751209,0.00021918,2]
[312798534,1706259041136,-11.85248791,0.00021918,2]
[312798535,1706259041145,-150.0,0.00021945,2]
[312798536,1706259041155,-250.0,0.0002195,2]
[312798537,1706259041164,-157.79,0.00021957,2]
[312798538,1706259041173,-231.99751209,0.00021965,2]
[312798545,1706259042781,-306.63531175,0.00021965,2]
[312798546,1706259043683,-151.64,0.00021688,2]
[312798547,1706259043693,-1065.44717616,0.00021965,2]
[312798548,1706259043702,-3574.71,0.00021965,2]
[312798549,1706259043711,-386.12,0.00021969,2]